Cogmind - Beta 11 X6 @@@ ROGUE MODE // 2021.08.11 @ 11:58:40 Player: Olga Result: Destroyed by S-27 Virus with Autogun Performance ------------- Evolutions (6) 3000 Regions Visited (14) 2800 Robots Destroyed (26) 130 Value Destroyed (1075) 1075 Prototype IDs (34) 680 Alien Tech Used (0) 0 Bonus (809) 809 TOTAL SCORE: 8494 Bonus ------- Follower Combat Kills 209 Aligned with FarCom 300 Met Data Miner 300 Cogmind --------- Core Integrity 0/1150 Matter 238/300 Energy 98/100 System Corruption 1% Temperature Cool (0) Movement Core (50) Location -4/Factory Parts ------- > --- POWER (1) -------- (None) > --- PROPULSION (4) --- (None) > --- UTILITY (12) ----- (None) > --- WEAPON (2) ------- (None) > --- INVENTORY (5) ---- Improved Linear Gravjet Large Storage Unit Katana Katana Katana Peak State ------------ > --- POWER ------------ Light Ion Engine > --- PROPULSION ------- Flying Fortress v7 > --- UTILITY ---------- Large Storage Unit Visual Processing Unit Advanced Terrain Scanner Advanced Terrain Scan Processor Improved Propulsion Shielding Layered Medium Armor Plating EM Shield Improved Shield Generator Advanced System Shield > --- WEAPON ----------- Beamcaster Heavy Flak Cannon > --- INVENTORY -------- Improved Aluminum Leg Improved Aluminum Leg Improved Aluminum Leg Improved Aluminum Leg Flexi-carbon Leg Large Storage Unit Weight Redist. System Advanced Weight Redist. System Ion Cannon Cooled Plasma Cannon Autogun Katana Katana Katana Katana [Rating: 82] Favorites ----------- Power Ion Engine Engine Ion Engine Propulsion Flying Fortress v7 Leg Improved Aluminum Leg Wheel Wheel Hover Unit Improved Linear Gravjet Flight Unit Flying Fortress v7 Utility Large Storage Unit Device EM Shield Storage Large Storage Unit Processor Visual Processing Unit Hackware Advanced System Shield Protection Improved Light Armor Plating Weapon Light Assault Rifle Energy Gun Beamcaster Energy Cannon Cooled Plasma Cannon Ballistic Gun Light Assault Rifle Ballistic Cannon Heavy Flak Cannon Launcher Grenade Launcher Slashing Weapon Katana Build | -11 -10 -10 -10 -9 -8 -7 -6 -6 -6 -6 -5 -5 -5 -4 ------- Run | Scr Mat Min Exi Min Mat Fac Fac Low Low Dat Pro Fac Ext Fac Slots Evolved 12 | . . . . . 4 2 2 . . . . 2 . 2 Power . | . . . . . . . . . . . . . . . Propulsion 2 | . . . . . 2 . . . . . . . . . Utility 10 | . . . . . 2 2 2 . . . . 2 . 2 Weapon . | . . . . . . . . . . . . . . . Parts Attached 66 | . 5 4 . 3 8 11 5 6 . . 4 7 9 4 Power 4 | . . 1 . . . . 1 1 . . 1 . . . Engine 4 | . . 1 . . . . 1 1 . . 1 . . . Core . | . . . . . . . . . . . . . . . Reactor . | . . . . . . . . . . . . . . . Propulsion 13 | . 2 2 . . 1 . . . . . . . 5 3 Treads . | . . . . . . . . . . . . . . . Leg 7 | . 2 . . . . . . . . . . . 5 . Wheel 4 | . . 2 . . . . . . . . . . . 2 Hover 1 | . . . . . . . . . . . . . . 1 Flight 1 | . . . . . 1 . . . . . . . . . Utility 26 | . 1 1 . . 2 6 4 2 . . 3 4 3 . Device 10 | . . . . . . 3 . 2 . . 1 2 2 . Storage 3 | . . 1 . . 1 . . . . . . . 1 . Processor 4 | . 1 . . . . . 3 . . . . . . . Hackware 1 | . . . . . . . . . . . 1 . . . Protection 8 | . . . . . 1 3 1 . . . 1 2 . . Artifact . | . . . . . . . . . . . . . . . Weapon 23 | . 2 . . 3 5 5 . 3 . . . 3 1 1 Energy Gun 3 | . . . . . . . . . . . . 2 1 . Energy Cannon 2 | . . . . . . . . 1 . . . . . 1 Ballistic Gun 11 | . 2 . . 2 3 2 . 1 . . . 1 . . Ballistic Cannon 1 | . . . . . . . . 1 . . . . . . Launcher 4 | . . . . 1 2 1 . . . . . . . . Special Weapon . | . . . . . . . . . . . . . . . Impact Weapon . | . . . . . . . . . . . . . . . Slashing Weapon 2 | . . . . . . 2 . . . . . . . . Piercing Weapon . | . . . . . . . . . . . . . . . Special Melee Weapon . | . . . . . . . . . . . . . . . Unidentified Prototypes 1 | . . . . . . . . 1 . . . . . . Parts Lost 35 | . . 1 . . . 4 . 5 . . 6 6 9 4 Power 4 | . . 1 . . . . . 1 . . 1 1 . . Propulsion 4 | . . . . . . . . . . . . . 3 1 Utility 20 | . . . . . . 3 . 2 . . 5 4 4 2 Weapon 7 | . . . . . . 1 . 2 . . . 1 2 1 Highest Loss Streak 7 | . . 1 . . . 2 . 3 . . 2 6 7 2 Average Slot Usage (%) 71 | . 98 99 100 100 58 61 66 71 80 80 66 67 47 33 Engine 7 | . 14 13 14 14 9 7 6 5 6 6 5 4 . . Leg 2 | . 28 2 . . . . . . . . . . 4 9 Wheel 6 | . . 25 28 28 . . . . . . . . . 3 Flight 3 | . . . . . 9 7 6 6 6 6 6 5 3 . Device 6 | . . . . . . 7 6 4 13 13 14 14 2 4 Storage 8 | . 14 14 14 14 9 7 6 6 6 6 6 5 6 4 Processor 11 | . 12 14 14 14 9 7 12 20 20 20 13 11 9 4 Protection 5 | . . . . . 4 11 13 16 13 13 4 7 3 . Energy Gun 1 | . 12 . . . . . . . . . . 2 5 2 Energy Cannon 1 | . . . . . . . . 2 6 6 6 . . 3 Ballistic Gun 8 | . 15 28 28 16 16 11 6 5 . . . 2 . . Ballistic Cannon 2 | . . . . . . . . . 6 6 6 5 3 . Launcher 1 | . . . . 11 1 . 6 1 . . . . . . Naked Turns 13 | . . . . . . . . . . . . . . 13 Heaviest Build 53 | 12 12 28 28 29 32 41 38 48 48 48 49 50 50 53 Greatest Support 52 | 20 26 26 26 26 50 50 50 50 50 50 50 50 52 46 Greatest Overweight (x) 1 | . . 1 1 1 . . . . . . . . 1 1 Average Overweight (x) . | . . . 1 1 . . . . . . . . . . Largest Inventory Capacity 15 | 8 8 15 15 15 15 15 15 15 15 15 15 15 15 15 Average Capacity 14 | 8 8 14 15 15 15 15 15 15 15 15 15 15 15 11 Most Carried 15 | 6 8 12 15 15 15 15 15 15 15 15 15 15 15 7 Average Carried 13 | 6 7 10 13 15 12 14 14 14 15 15 14 14 13 6 Final Capacity 15 | 8 8 15 15 15 15 15 15 15 15 15 15 15 15 5 Final Carried 15 | 6 8 12 15 15 13 14 15 15 15 15 14 15 6 5 Class Distribution -------------------- 90% | Mutant 9% | Scout Dominant Class ---------------- Mutant | -10/Materials Mutant | -10/Mines Mutant | -10/Exiles Mutant | -9/Mines Mutant | -8/Materials Mutant | -7/Factory Mutant | -6/Factory Mutant | -6/Lower Caves Mutant | -6/Lower Caves Mutant | -6/Data Miner Mutant | -5/Proximity Caves Scout | -5/Factory Mutant | -5/Extension Mutant | -4/Factory Resources | -11 -10 -10 -10 -9 -8 -7 -6 -6 -6 -6 -5 -5 -5 -4 ----------- Run | Scr Mat Min Exi Min Mat Fac Fac Low Low Dat Pro Fac Ext Fac Matter Collected 974 | 200 26 111 . 53 . 71 . 173 69 . 199 . 68 4 Remotely 62 | . . . . . . 62 . . . . . . . . Salvage Created 568 | . 59 140 . 45 . 72 . 167 . . 32 53 . . Parts 41 | . 7 3 . 7 . 4 . 14 . . 2 4 . . Haulers Intercepted . | . . . . . . . . . . . . . . . Recyclers Shooed . | . . . . . . . . . . . . . . . Parts Field Recycled . | . . . . . . . . . . . . . . . Retrieved Matter . | . . . . . . . . . . . . . . . Parts Self-Destructed 22 | . . . . . . . . 9 2 . 11 . . . Prevented . | . . . . . . . . . . . . . . . Kills | -11 -10 -10 -10 -9 -8 -7 -6 -6 -6 -6 -5 -5 -5 -4 ------- Run | Scr Mat Min Exi Min Mat Fac Fac Low Low Dat Pro Fac Ext Fac Combat Hostiles Destroyed 24 | . 3 3 . 4 . 3 . 8 . . 3 . . . Guns 9 | . 3 3 . . . 1 . 2 . . . . . . Cannons 5 | . . . . . . . . 2 . . 3 . . . AOE 10 | . . . . 4 . 2 . 4 . . . . . . Classes Destroyed 6 | . 1 1 . . . 2 . . . . . 2 . . Worker 1 | . . . . . . . . . . . . 1 . . Tunneler 1 | . . . . . . . . . . . . 1 . . Swarmer 16 | . 3 . . 2 . . . 8 . . 3 . . . Grunt 5 | . . 3 . 2 . . . . . . . . . . Sentry 1 | . . . . . . 1 . . . . . . . . Hunter 2 | . . . . . . 2 . . . . . . . . Best Kill Streak 4 | . 3 1 . 2 . 2 . 4 . . 3 2 . . Combat Bots Only 4 | . 3 1 . 2 . 2 . 4 . . 3 . . . Max Kills in Single Turn 3 | . 2 1 . 2 . 1 . 3 . . 1 2 . . Gunslinging 1 | . 1 . . . . . . . . . . . . . Exploded 3 | . . . . 2 . 1 . 3 . . . . . . Melee . | . . . . . . . . . . . . . . . Uniques/NPCs Destroyed . | . . . . . . . . . . . . . . . Combat | -11 -10 -10 -10 -9 -8 -7 -6 -6 -6 -6 -5 -5 -5 -4 -------- Run | Scr Mat Min Exi Min Mat Fac Fac Low Low Dat Pro Fac Ext Fac Damage Taken 5871 | . 72 162 . 26 . 922 . 923 75 . 534 621 1099 1437 Core 1885 | . 10 16 . 26 . 155 . 165 . . 50 71 234 1158 Absorbed by Shields 28 | . . . . . . . . . . . . 28 . . Core Remaining (%) 83 | 100 . . . 79 100 77 . . . . 74 . 69 . Volleys Fired 88 | . 5 13 . 5 3 37 . 14 . . 8 2 1 . Largest 2 | . 2 2 . 2 2 2 . 2 . . 2 2 2 . Hottest 134 | . 90 40 . 50 50 50 . 58 . . 88 76 134 . Shots Fired 141 | . 10 26 . 9 6 47 . 21 . . 16 4 2 . Gun 103 | . 10 26 . 5 3 46 . 10 . . . 2 1 . Cannon 25 | . . . . . . . . 6 . . 16 2 1 . Launcher 13 | . . . . 4 3 1 . 5 . . . . . . Special . | . . . . . . . . . . . . . . . Kinetic 103 | . . 26 . 5 3 46 . 10 . . 8 4 1 . Thermal 20 | . 5 . . . . . . 6 . . 8 . 1 . Explosive 13 | . . . . 4 3 1 . 5 . . . . . . Electromagnetic 5 | . 5 . . . . . . . . . . . . . Robot Hit Streak 20 | . 4 7 . 2 . 20 . 5 . . 7 2 . . Robot Miss Streak 5 | . 2 1 . 2 . 2 . 3 . . 5 2 . . Penetration Max . | . . . . . . . . . . . . . . . Secondary Targets 2 | . 2 . . . . . . . . . . . . . Max Gunslinging Chain 1 | . 1 . . . . . . . . . . . . . Shots Hit Robots 82 | . 7 18 . 2 . 29 . 10 . . 12 4 . . Core Hits 62 | . 3 8 . 5 . 11 . 15 . . 11 9 . . Critical Kills . | . . . . . . . . . . . . . . . Critical Parts Destroyed . | . . . . . . . . . . . . . . . Critical Strikes . | . . . . . . . . . . . . . . . Melee Attacks 1 | . . . . . . 1 . . . . . . . . Impact . | . . . . . . . . . . . . . . . Slashing 1 | . . . . . . 1 . . . . . . . . Piercing . | . . . . . . . . . . . . . . . Sneak Attacks . | . . . . . . . . . . . . . . . Combat Hostiles . | . . . . . . . . . . . . . . . Follow-up Attacks . | . . . . . . . . . . . . . . . Damage Inflicted 2622 | . 85 191 . 400 . 667 . 657 . . 367 242 . 13 Guns 577 | . 85 191 . 9 . 167 . 94 . . . 31 . . Cannons 593 | . . . . . . . . 196 . . 367 30 . . Explosions 1439 | . . . . 391 . 500 . 367 . . . 181 . . Melee . | . . . . . . . . . . . . . . . Ramming 13 | . . . . . . . . . . . . . . 13 Kinetic 715 | . . 191 . 9 . 167 . 94 . . 193 61 . . Thermal 804 | . 51 . . 93 . 290 . 196 . . 174 . . . Explosive 875 | . . . . 298 . 210 . 367 . . . . . . Electromagnetic 215 | . 34 . . . . . . . . . . 181 . . Impact . | . . . . . . . . . . . . . . . Slashing . | . . . . . . . . . . . . . . . Piercing . | . . . . . . . . . . . . . . . Highest Corruption 1 | . . . . . . . . . . . 1 1 1 1 Average Corruption 1 | . . . . . . . . . . . 1 1 1 1 Corruption Purged . | . . . . . . . . . . . . . . . Effects 6 | . . . . . . . . . . . 4 1 1 . Message Errors 2 | . . . . . . . . . . . 1 1 . . Energy Discharges 1 | . . . . . . . . . . . 1 . . . Data Loss (minor) 3 | . . . . . . . . . . . 2 . 1 . Overload Shots . | . . . . . . . . . . . . . . . Overflow Damage 31 | . . . . . . . . 18 . . 13 . . . Projectiles 20 | . . . . . . . . 7 . . 13 . . . Explosions 11 | . . . . . . . . 11 . . . . . . Melee . | . . . . . . . . . . . . . . . Knockbacks 9 | . . . . . . . . . . . 8 . . 1 Impact 1 | . . . . . . . . . . . . . . 1 Kinetic 7 | . . . . . . . . . . . 7 . . . Secondary 1 | . . . . . . . . . . . 1 . . . Self-Inflicted Damage 112 | . . . . . . 106 . . . . . . . 6 Shots 2 | . . . . . . 2 . . . . . . . . Rammed 2 | . . . . . . . . . . . . . . 2 Targets Rammed 2 | . . . . . . . . . . . . . . 2 Kicked . | . . . . . . . . . . . . . . . Crushed . | . . . . . . . . . . . . . . . Highest Temperature 150 | . 150 34 . 16 32 15 . 31 . . . 30 78 . Average Temperature 23 | . 75 15 . 9 17 5 . 5 . . . 17 47 . Received Heat Transfer 518 | . . 129 . 15 . 29 . 168 63 . . 54 33 27 Siege Activations . | . . . . . . . . . . . . . . . Robots Corrupted . | . . . . . . . . . . . . . . . Combat Hostiles . | . . . . . . . . . . . . . . . Parts Fried 1 | . 1 . . . . . . . . . . . . . Impact Corruptions . | . . . . . . . . . . . . . . . Robots Melted . | . . . . . . . . . . . . . . . Combat Hostiles . | . . . . . . . . . . . . . . . Parts Melted . | . . . . . . . . . . . . . . . Heat Transferred 998 | . 148 . . 100 . 200 . 300 . . 250 . . . Parts Sabotaged . | . . . . . . . . . . . . . . . Parts Stolen . | . . . . . . . . . . . . . . . Parts Stripped . | . . . . . . . . . . . . . . . Power Chain Reactions . | . . . . . . . . . . . . . . . Missiles Intercepted . | . . . . . . . . . . . . . . . Alert | -11 -10 -10 -10 -9 -8 -7 -6 -6 -6 -6 -5 -5 -5 -4 ------- Run | Scr Mat Min Exi Min Mat Fac Fac Low Low Dat Pro Fac Ext Fac Peak Influence 338 | . 100 124 . 104 126 211 77 . . . . 338 182 271 Initial 111 | . . 39 . . 40 56 77 . . . . 24 111 56 Average 91 | . 45 84 . 54 62 81 77 . . . . 144 140 97 Maximum Alert Level 1 | . . . . . . 1 . . . . . 1 . 1 Low Security (%) 92 | 100 100 100 . 100 100 95 100 . . . . 70 100 88 Level 1 7 | . . . . . . 4 . . . . . 29 . 11 Level 2 . | . . . . . . . . . . . . . . . Level 3 . | . . . . . . . . . . . . . . . Level 4 . | . . . . . . . . . . . . . . . Level 5 . | . . . . . . . . . . . . . . . High Security . | . . . . . . . . . . . . . . . Max Security . | . . . . . . . . . . . . . . . Squads Dispatched 19 | . 1 . . . 2 3 1 . . . . 5 . 7 Investigation 14 | . 1 . . . 1 3 1 . . . . 3 . 5 Extermination 1 | . . . . . . . . . . . . . . 1 Reinforcement 3 | . . . . . 1 . . . . . . 1 . 1 Assault 1 | . . . . . . . . . . . . 1 . . Garrison . | . . . . . . . . . . . . . . . Intercept . | . . . . . . . . . . . . . . . Construction Impeded . | . . . . . . . . . . . . . . . Haulers Reinforced . | . . . . . . . . . . . . . . . Active Scanning Responses . | . . . . . . . . . . . . . . . Cargo Convoy Interrupts . | . . . . . . . . . . . . . . . Stealth | -11 -10 -10 -10 -9 -8 -7 -6 -6 -6 -6 -5 -5 -5 -4 --------- Run | Scr Mat Min Exi Min Mat Fac Fac Low Low Dat Pro Fac Ext Fac Distress Signals 7 | . . . . . 1 1 . . . . . 1 2 2 Communications Jammed . | . . . . . . . . . . . . . . . Distress Signals . | . . . . . . . . . . . . . . . Times Spotted 103 | . 3 5 . 6 2 8 . 17 6 . 10 14 10 22 Peak Tracking Total 15 | . 3 2 . 4 4 3 . 8 4 . 5 9 7 15 Tactical Retreats 24 | . . 1 . . . 1 . 3 3 . 3 4 3 6 Traps | -11 -10 -10 -10 -9 -8 -7 -6 -6 -6 -6 -5 -5 -5 -4 ------- Run | Scr Mat Min Exi Min Mat Fac Fac Low Low Dat Pro Fac Ext Fac Traps Triggered 2 | . . . . . . . . . . . . . 2 . Indirectly . | . . . . . . . . . . . . . . . Trap Hack Attempts . | . . . . . . . . . . . . . . . Triggered . | . . . . . . . . . . . . . . . Disarmed . | . . . . . . . . . . . . . . . Reprogrammed . | . . . . . . . . . . . . . . . Reused . | . . . . . . . . . . . . . . . Traps Extracted . | . . . . . . . . . . . . . . . Installed . | . . . . . . . . . . . . . . . Triggered . | . . . . . . . . . . . . . . . Machines | -11 -10 -10 -10 -9 -8 -7 -6 -6 -6 -6 -5 -5 -5 -4 ---------- Run | Scr Mat Min Exi Min Mat Fac Fac Low Low Dat Pro Fac Ext Fac Machines Disabled 15 | . . . . 1 1 9 . . . . . 3 1 . Max in Single Turn 5 | . . . . 1 1 5 . . . . . 2 1 . Garrison Access 1 | . . . . . . . . . . . . 1 . . Machines Sabotaged 2 | . . . . . . . . . . . . . . 2 Garrisons Compromised . | . . . . . . . . . . . . . . . Overloaded Fab Kills . | . . . . . . . . . . . . . . . Fab Network Shutdowns . | . . . . . . . . . . . . . . . Hacking | -11 -10 -10 -10 -9 -8 -7 -6 -6 -6 -6 -5 -5 -5 -4 --------- Run | Scr Mat Min Exi Min Mat Fac Fac Low Low Dat Pro Fac Ext Fac Machines Accessed 30 | . 2 . 1 1 2 5 3 . . 4 . 6 1 5 Terminals 16 | . 1 . . . 1 3 2 . . . . 3 1 5 Fabricators 1 | . . . . . . . 1 . . . . . . . Repair Stations 2 | . . . . . . 1 . . . . . 1 . . Recycling Units 5 | . 1 . . . 1 1 . . . . . 2 . . Scanalyzers . | . . . . . . . . . . . . . . . Garrison Access . | . . . . . . . . . . . . . . . Total Hacks 77 | . 4 . 1 1 4 9 7 . . 27 . 15 2 7 Successful 51 | . 2 . 1 1 3 5 1 . . 27 . 7 1 3 Failed 26 | . 2 . . . 1 4 6 . . . . 8 1 4 Catastrophic 5 | . . . . . . 1 1 . . . . 2 . 1 Database Lockouts . | . . . . . . . . . . . . . . . Manual 35 | . 4 . 1 . 4 7 1 . . . . 11 2 5 Terminals 30 | . 2 . . . 3 6 5 . . . . 5 2 7 Fabricators 2 | . . . . . . . 2 . . . . . . . Repair Stations 5 | . . . . . . 2 . . . . . 3 . . Recycling Units 11 | . 2 . . . 1 1 . . . . . 7 . . Scanalyzers . | . . . . . . . . . . . . . . . Garrison Access . | . . . . . . . . . . . . . . . Terminal Hacks 31 | . . . 1 1 . . . . . 27 . 1 1 . Record 11 | . . . . . . . . . . 11 . . . . Part Schematic 6 | . . . . . . . . . . 6 . . . . Robot Schematic 7 | . . . . . . . . . . 7 . . . . Prototype ID Bank 3 | . . . . . . . . . . 3 . . . . Open Door 2 | . . . . 1 . . . . . . . 1 . . Branch Access Points 1 | . . . . . . . . . . . . . 1 . EX-Prototype ID Bank 1 | . . . 1 . . . . . . . . . . . Fabricator Hacks 1 | . . . . . . . 1 . . . . . . . Build 1 | . . . . . . . 1 . . . . . . . Repair Station Hacks 4 | . . . . . . 2 . . . . . 2 . . Scan Component 2 | . . . . . . 1 . . . . . 1 . . Repair 2 | . . . . . . 1 . . . . . 1 . . Recycling Unit Hacks . | . . . . . . . . . . . . . . . Scanalyzer . | . . . . . . . . . . . . . . . Garrison Access Hacks . | . . . . . . . . . . . . . . . Unauthorized Hacks 15 | . 2 . . . 3 3 . . . . . 4 . 3 Terminals 10 | . 1 . . . 2 2 . . . . . 2 . 3 Track 1 | . . . . . 1 . . . . . . . . . Assimilate 1 | . . . . . . 1 . . . . . . . . Botnet 3 | . 1 . . . 1 1 . . . . . . . . Detonate 1 | . . . . . . . . . . . . 1 . . Sabotage 4 | . . . . . . . . . . . . 1 . 3 Fabricators . | . . . . . . . . . . . . . . . Repair Stations . | . . . . . . . . . . . . . . . Recycling Units 5 | . 1 . . . 1 1 . . . . . 2 . . Tunnel 5 | . 1 . . . 1 1 . . . . . 2 . . Scanalyzers . | . . . . . . . . . . . . . . . Garrison Access . | . . . . . . . . . . . . . . . Data Cores Recovered . | . . . . . . . . . . . . . . . Used . | . . . . . . . . . . . . . . . Hacking Detections 15 | . 1 . . . 1 3 3 . . . . 4 1 2 Full Trace Events 4 | . . . . . . 1 1 . . . . . . 2 Feedback Events . | . . . . . . . . . . . . . . . Feedback Blocked . | . . . . . . . . . . . . . . . Robot Schematics Acquired 7 | . . . . . . . . . . 7 . . . . Robots Built . | . . . . . . . . . . . . . . . Matter . | . . . . . . . . . . . . . . . Time . | . . . . . . . . . . . . . . . Total Robot Build Rating . | . . . . . . . . . . . . . . . Part Schematics Acquired 6 | . . . . . . . . . . 6 . . . . Parts Built . | . . . . . . . . . . . . . . . Matter 256 | . . . . . . . 256 . . . . . . . Time 128 | . . . . . . . 128 . . . . . . . Total Part Build Rating . | . . . . . . . . . . . . . . . Parts Repaired 2 | . . . . . . 1 . . . . . 1 . . Time 63 | . . . . . . 38 . . . . . 25 . . Parts Recycled . | . . . . . . . . . . . . . . . Recycled Matter . | . . . . . . . . . . . . . . . Retrieved Matter . | . . . . . . . . . . . . . . . Retrieved Components . | . . . . . . . . . . . . . . . Parts Scanalyzed . | . . . . . . . . . . . . . . . Part Schematics Acquired . | . . . . . . . . . . . . . . . Parts Damaged . | . . . . . . . . . . . . . . . Bothacking | -11 -10 -10 -10 -9 -8 -7 -6 -6 -6 -6 -5 -5 -5 -4 ------------ Run | Scr Mat Min Exi Min Mat Fac Fac Low Low Dat Pro Fac Ext Fac Used RIF Installer . | . . . . . . . . . . . . . . . Robots Hacked . | . . . . . . . . . . . . . . . Non-combat . | . . . . . . . . . . . . . . . Combat . | . . . . . . . . . . . . . . . Robot Hacks Applied . | . . . . . . . . . . . . . . . Relay Couplers Released 3 | . . . . . . . . . . . . 3 . . Machine Destruction 3 | . . . . . . . . . . . . 3 . . Robots Rewired . | . . . . . . . . . . . . . . . Allies Hacked . | . . . . . . . . . . . . . . . Hacks Repelled . | . . . . . . . . . . . . . . . Allies | -11 -10 -10 -10 -9 -8 -7 -6 -6 -6 -6 -5 -5 -5 -4 -------- Run | Scr Mat Min Exi Min Mat Fac Fac Low Low Dat Pro Fac Ext Fac Total Allies 10 | . . 3 . . . 1 . . . . 1 . 5 . Largest Group 3 | . . 3 3 3 3 2 . . . . 1 . 2 . Highest-Rated Group 95 | . . 40 40 40 40 34 . . . . 95 . 68 . Highest-Rated Ally 95 | . . 16 16 16 16 26 . . . . 95 . 37 . Total Orders 2 | . . . . . . 2 . . . . . . . . STAY 1 | . . . . . . 1 . . . . . . . . FOLLOW 1 | . . . . . . 1 . . . . . . . . Ally Attacks 71 | . . . . 16 1 3 . . . . 25 . 26 . Total Damage 1307 | . . . . 138 12 40 . . . . 624 . 493 . Kills 12 | . . . . 3 . . . . . . 6 . 3 . Allies Corrupted . | . . . . . . . . . . . . . . . Allies Melted 1 | . . . . . . . . . . . . . 1 . Intel | -11 -10 -10 -10 -9 -8 -7 -6 -6 -6 -6 -5 -5 -5 -4 ------- Run | Scr Mat Min Exi Min Mat Fac Fac Low Low Dat Pro Fac Ext Fac Robot Analysis Total . | . . . . . . . . . . . . . . . Derelict Logs Recovered 3 | . . . . 1 . . . . . . 2 . . . Drone Launches . | . . . . . . . . . . . . . . . Drone Recoveries . | . . . . . . . . . . . . . . . Exploration | -11 -10 -10 -10 -9 -8 -7 -6 -6 -6 -6 -5 -5 -5 -4 ------------- Run | Scr Mat Min Exi Min Mat Fac Fac Low Low Dat Pro Fac Ext Fac Turns Passed 4131 | 2 187 205 240 461 112 532 162 262 180 39 645 458 232 414 Spaces Moved 5691 | 2 125 120 221 407 166 778 273 437 359 79 1224 743 316 441 Core 248 | . . . . . . . . . . . . . . 248 Treads . | . . . . . . . . . . . . . . . Legs 360 | 2 125 16 . . . . . . . . . . 24 193 Wheels 732 | . . 104 221 407 . . . . . . . . . . Hover . | . . . . . . . . . . . . . . . Flight 4351 | . . . . . 166 778 273 437 359 79 1224 743 292 . Fastest Speed 50 | 120 120 90 105 105 50 50 50 50 50 50 50 50 50 50 Average Speed 61 | 120 120 103 105 105 50 50 50 50 50 50 50 50 55 83 Slowest Speed 200 | 120 120 120 105 105 50 50 50 50 50 50 50 50 200 200 Overloaded Moves . | . . . . . . . . . . . . . . . Propulsion Burnouts . | . . . . . . . . . . . . . . . Robots Hopped 10 | . . . . . . 1 . . . . . 1 8 . Cave-ins Triggered . | . . . . . . . . . . . . . . . Exploration Rate (%) 41 | 2 33 22 61 91 15 17 7 46 61 71 96 23 52 21 Regions Visited 14 Branch Regions 8 Pre-discovered Areas 8 | . 1 . . 1 1 1 . . . 1 1 2 . . Known Exits Taken 1 | . . . . . 1 . . . . . . . . . Unknown Exits Taken 13 | 1 1 1 1 1 . 1 1 1 1 1 1 1 1 . Scrap Searched 12 | . . 1 . 3 . . . 4 1 . 3 . . . Spaces Dug . | . . . . . . . . . . . . . . . Terrain Destroyed 204 | . . . . 41 48 90 . 22 . . 3 . . . Melee . | . . . . . . . . . . . . . . . Projectile 3 | . . . . . . . . . . . 3 . . . AOE 201 | . . . . 41 48 90 . 22 . . . . . . Terrain Rammed . | . . . . . . . . . . . . . . . Walls Destroyed . | . . . . . . . . . . . . . . . Machines Disabled . | . . . . . . . . . . . . . . . Actions | -11 -10 -10 -10 -9 -8 -7 -6 -6 -6 -6 -5 -5 -5 -4 --------- Run | Scr Mat Min Exi Min Mat Fac Fac Low Low Dat Pro Fac Ext Fac Total 6164 | 1 155 176 229 433 187 879 297 459 358 78 1240 821 362 489 Wait 249 | . 5 34 7 17 6 39 12 . . . 2 69 25 33 Move 5661 | 1 124 119 220 406 165 775 272 436 358 78 1223 740 303 441 Hop 6 | . . . . . . 1 . . . . . 1 4 . Pick Up 43 | . 8 5 1 . 3 11 5 3 . . 3 2 . 2 Fast Attach 10 | . 1 . . . . 1 2 2 . . . 4 . . Attach 31 | . . 1 . . 2 6 2 3 . . 4 1 9 3 Detach 2 | . . . . . . . . . . . . . . 2 Swap 25 | . 4 3 . 3 6 4 1 1 . . . 2 . 1 Drop 26 | . 8 1 1 2 2 4 3 . . . . . . 5 Fire 88 | . 5 13 . 5 3 37 . 14 . . 8 2 1 . Melee 1 | . . . . . . 1 . . . . . . . . Ram 2 | . . . . . . . . . . . . . . 2 Kick . | . . . . . . . . . . . . . . . Crush . | . . . . . . . . . . . . . . . Escape Stasis 20 | . . . . . . . . . . . . . 20 . Rewire . | . . . . . . . . . . . . . . . Trap . | . . . . . . . . . . . . . . . Miscellaneous . | . . . . . . . . . . . . . . . Route ------- -11/Scrapyard -10/Materials -10/Mines (discovered 2 exits: [*Mat] / *Exi) -10/Exiles -9/Mines -8/Materials -7/Factory -6/Factory -6/Lower Caves -6/Lower Caves (discovered 2 exits: *Fac / *Dat) -6/Data Miner -5/Proximity Caves -5/Factory -5/Extension (discovered 2 exits: *Fac / *Cet) -4/Factory History --------- Turn | Location | Event 1 | -11/Scrapyard | Discovered new exit (range 1) 3 | -11/Scrapyard | Entered Materials 172 | -10/Materials | Discovered new exit (range 15) 190 | -10/Materials | Entered Mines 194 | -10/Mines | Met a Derelict bent on vengeance 307 | -10/Mines | Build established: Mutant 360 | -10/Mines | Discovered new exit (range 2) 366 | -10/Mines | Assisted by bots powering up and referring to "LRC-V3" 384 | -10/Mines | Deemed a non-threat by the Exiles lab entrance 384 | -10/Mines | Discovered new exit (range 5) 395 | -10/Mines | Entered Exiles 395 | -10/Exiles | Accompanied by 3 allies 427 | -10/Exiles | Met 8R-AWN 443 | -10/Exiles | Met EX-HEX 474 | -10/Exiles | Met EX-BIN 486 | -10/Exiles | Aligned with FarCom system 487 | -10/Exiles | Given EX-Vault access code 512 | -10/Exiles | Opened EX-Vault 521 | -10/Exiles | Found Flying Fortress v7 543 | -10/Exiles | Warned to stay clear of 0b10 Research branches 573 | -10/Exiles | Met EX-DEC 613 | -10/Exiles | Discovered new exit (range 14) 635 | -10/Exiles | Left Exiles lab with Flying Fortress v7 635 | -10/Exiles | Entered Mines 635 | -9/Mines | Accompanied by 3 allies 868 | -9/Mines | Met a Derelict who couldn't figure out how to use a Trap Extractor 1003 | -9/Mines | Learned location of Storage (-7) 1086 | -9/Mines | Learned 2 Materials zone layouts 1088 | -9/Mines | Discovered new exit (range 4) 1096 | -9/Mines | Entered Materials 1096 | -8/Materials | Accompanied by 3 allies 1096 | -8/Materials | Evolved 4 slots: Propulsion x2, Utility x2 1097 | -8/Materials | Identified exit to Factory 1208 | -8/Materials | Entered Factory 1208 | -7/Factory | Accompanied by 2 allies 1208 | -7/Factory | Evolved 2 slots: Utility x2 1693 | -7/Factory | Repaired Imp. Light Armor Plating? 1717 | -7/Factory | Discovered new exit (range 15) 1740 | -7/Factory | Entered another Factory area 1740 | -6/Factory | Evolved 2 slots: Utility x2 1888 | -6/Factory | Discovered new exit (range 14) 1902 | -6/Factory | Entered Lower Caves 2079 | -6/Lower Caves | Lost 3 parts (1p2u) 2157 | -6/Lower Caves | Discovered new exit (range 14) 2160 | -6/Lower Caves | Attracted the attention of an 0b10 checkpoint 2164 | -6/Lower Caves | Entered another Lower Caves area 2181 | -6/Lower Caves | Encountered a Warlord checkpoint 2246 | -6/Lower Caves | Spotted B-75 Beast 2262 | -6/Lower Caves | Discovered new exit (range 11) 2329 | -6/Lower Caves | Discovered new exit (range 12) 2344 | -6/Lower Caves | Entered Data Miner 2344 | -6/Data Miner | Discovered new exit (range 7) 2353 | -6/Data Miner | Met Data Miner 2363 | -6/Data Miner | Learned location of Section 7 (-2) 2363 | -6/Data Miner | Acquired the access code to Warlord's prototype stash 2372 | -6/Data Miner | Received God Mode back door access code from Data Miner 2383 | -6/Data Miner | Entered Proximity Caves 2397 | -5/Proximity Caves | Escorted by Enhanced Grunt 2469 | -5/Proximity Caves | Learned Factory trap positions 2539 | -5/Proximity Caves | Learned location of Warlord (-5) 3002 | -5/Proximity Caves | Discovered new exit (range 8) 3028 | -5/Proximity Caves | Entered Factory 3028 | -5/Factory | Evolved 2 slots: Utility x2 3029 | -5/Factory | Loaded intel: 89 trap records 3164 | -5/Factory | Repaired Lyr. Medium Armor Plating 3310 | -5/Factory | Build established: Scout 3428 | -5/Factory | Incoming investigation squad redirected 3482 | -5/Factory | Lost 6 parts (1p4u1w) 3484 | -5/Factory | Discovered new exit (range 6) 3486 | -5/Factory | Entered Extension 3504 | -5/Extension | Disrupted transfer network 3513 | -5/Extension | Rescued a captive Derelict 3514 | -5/Extension | Identified exit to Cetus 3529 | -5/Extension | Rescued a captive Derelict 3530 | -5/Extension | Rescued a captive Derelict 3552 | -5/Extension | Rescued a captive Derelict 3590 | -5/Extension | Rescued a captive Derelict 3607 | -5/Extension | Rescued a captive Derelict 3614 | -5/Extension | Spotted B-75 Beast 3619 | -5/Extension | Spotted B-75 Beast 3689 | -5/Extension | Discovered new exit (range 15) 3697 | -5/Extension | Build established: Mutant 3718 | -5/Extension | Entered Factory 3718 | -4/Factory | Evolved 2 slots: Utility x2 3741 | -4/Factory | Lost 7 parts (3n3u1w) 3832 | -4/Factory | Incoming investigation squad redirected 3983 | -4/Factory | Spotted B-86 Titan 4005 | -4/Factory | Incoming investigation squad redirected 4084 | -4/Factory | Core integrity fell below 50% 4118 | -4/Factory | Core integrity fell below 20% 4132 | -4/Factory | Destroyed by S-27 Virus with Autogun Last Messages --------------- 04089_ Penetrated by Slug. 04092_ Slug penetrates Fabricator. 04094_ Penetrated by Slug. 04115_ Knocked back. 04119_ Visual Processing Unit destroyed. 04119_ Critical hit (Blast). 04119_ Knocked back. 04121_ H-71 Marshal calls for reinforcements. 04121_ ALERT: Suspicious intruders detected, dispatching reinforcements to area. 04121_ Knocked back. 04122_ K-01 Serf cleans the Construction Platform. 04125_ Connecting with Terminal... >>Force(Sabotage) SYSTEM_VULNERABLE[Nuclear Reactor] NETWORK_OVERLOAD COORDINATES_RETRIEVED 04125_ ALERT: Suspicious activity at Terminal F007. Dispatching Investigation squad. 04129_ K-01 Serf collects debris. Map ----- +----------------------------------------------------+ | ?????????????????????????????????????????????????? | | ?????????????????????????????????????????????????? | | ?????????????????????????????????????????????????? | | ?????????????????????????????????????????????????? | | ?????????????????????????????????????????????????? | | ?????????????????????????????????????????????????? | | ?????????????????????????????????????????????????? | | ?????????????????????????????????????????????????? | | ?????????????????????????????????????????????????? | | ?????????????????????????????????????????????????? | | ?????????????????p???????????????????????????????? | | ????????????????????? ???????????????????????????? | | ?????????????????? ???????????????????????????? | | ????????????????# ####???????????????????????? | | ?????????????? ???????????????????????? | | ?????????????? ???????????????????????? | | ????????????? ???????????????????????? | | ????????????? #?????????????????#+#??? | | ?????????????? ##############????# #??? | | ??????????????? # ] #????# #??# | | ????????????????? k # #????# #??# | | ??????????????????# # """"""" #????# #### | | ??????????????????# # """"""" ###### % | | ??????????????????# # """"""" p p | | ??????????????????# # """"""" ###### | | ??????????????????# @/ #????###### | | ??????????????????# # k #?????????# | | ??????????????????#k # #?????????# | | ??????????????????# # ""T"" #?????????? | | ??????????????????# # """"" #?????????? | | ??????????????????#k # [ #?????????? | | ??????????????????# k ##+###########?????????? | | ??????????????????# #???????????????????? | | ??????????????????# s #???????????????????? | | ??????????????????# #???????????????????? | | ??????????????????# s #???????????????????? | | ??????????????????# s #???????????????????? | | ??????????????????# #???????????????????? | | ??????????????????# s #???????????????????? | | ????????????????????? ????????????????????? | | ??????????????????????? ????????????????????? | | ??????????????????????? ????????????????????? | | ?????????????????????? ????????????????????? | | ?????????????????????? ????????????????????? | | ???????????????????????? ????????????????????? | | ?????????????????????????? ????????????????????? | | ?????????????????????????????????????????????????? | | ?????????????????????????????????????????????????? | | ?????????????????????????????????????????????????? | | ?????????????????????????????????????????????????? | +----------------------------------------------------+ Best States ------------- Heat Dissipation 51 Energy Generation 14 Energy Capacity 250 Matter Stores 300 Matter Capacity 300 Sight Range 18 Terrain Scan Range 20 Terrain Scan Density 285 Additional Mass Support 9 Heat Shielding 75 Armor Coverage 375 Resistance: TH 20 Resistance: EM 25 Power Shielding 66 Propulsion Shielding 66 Evasion (%) 60 Armor Integrity Analysis 30 Kinecelleration 30 Defensive Hacking 14 Item Schematics ----------------- Combat Drone Bay | -6/Data Miner | Free Cmb. Gravmag System | -6/Data Miner | Free Lgt. Regenerative Plating | -6/Data Miner | Free Tactical Coordination Suite | -6/Data Miner | Free Plasma Sword | -6/Data Miner | Free Exp. Transmission Jammer | -6/Data Miner | Free Robot Schematics ------------------ S-27 Virus | -6/Data Miner | Free G-50 Soldier | -6/Data Miner | Free L-41 Fighter | -6/Data Miner | Free X-72 Disruptor | -6/Data Miner | Free P-70 Sage | -6/Data Miner | Free I-36 Angel | -6/Data Miner | Free I-47 Archangel | -6/Data Miner | Free Fabricated ------------ Nothing Alien Tech Used ----------------- None Achievements -------------- Cya! Challenges ------------ None Game ------ Seed HardcellWeldingCanceller Manual? 0 Play Time 01:18:49 Cumulative 64.7 hours Start 2021.08.11 @ 10:34:19 End 2021.08.11 @ 11:58:40 Sessions 1 Manual Loads 0 Difficulty Rogue Special Mode None Game No. 78 Rogue 78 Adventurer 0 Explorer 0 Win Type - Total 0 Types 0/0/0/0/0/0/0/0/0 Lore% 49 Gallery% 45 Achievement% 37 Wizard Run 0 Options --------- ASCII 1 Keyboard 0 Movement Mouse Keybinds 0 Fullscreen 1 Font 18/SmallcapsGlow Map View 66x50 Tactical HUD 1 Map Filters NONE Filters NONE Steam 1 RUN: 68a7d784-aa49-4b05-a748-3b261f76404f